fUSD/lending_fUSD_20240317
["ID","MTS","AMOUNT","RATE_DAILY","PERIOD"]
[319292965,1710641456423,-500.0,0.00015342,2]
[319292966,1710641456433,-500.0,0.00015342,2]
[319292967,1710641456444,-500.0,0.00015342,2]
[319292968,1710641456453,-500.0,0.00015342,2]
[319292969,1710641456462,-606.49,0.00015342,2]
[319292970,1710641456472,-504.90449727,0.00015342,2]
[319292971,1710641456481,-500.0,0.00015342,2]
[319292972,1710641456491,-606.49,0.00015342,2]
[319292973,1710641456501,-500.0,0.00015342,2]
[319292974,1710641456510,-606.49,0.00015342,2]
[319292975,1710641456520,-500.0,0.00015342,2]
[319292976,1710641456530,-606.49,0.00015342,2]
[319292977,1710641456539,-606.49,0.00015342,2]
[319292978,1710641456548,-1632.24,0.00015342,2]
[319292979,1710641456558,-606.49,0.00015342,2]
[319292980,1710641456567,-1632.24,0.00015342,2]
[319292981,1710641456577,-606.49,0.00015342,2]
[319292982,1710641456586,-1632.24,0.00015342,2]
[319292983,1710641456596,-500.0,0.00015342,2]
[319292984,1710641456605,-1632.24,0.00015342,2]
[319292985,1710641456614,-606.49,0.00015342,2]
[319292986,1710641456623,-500.0,0.00015342,2]
[319292987,1710641456632,-1632.24,0.00015342,2]
[319292988,1710641456641,-606.49,0.00015342,2]
[319292989,1710641456651,-500.0,0.00015342,2]
[319292990,1710641456660,-1632.24,0.00015342,2]
[319292991,1710641456669,-606.49,0.00015342,2]
[319292992,1710641456678,-500.0,0.00015342,2]
[319292993,1710641456690,-606.49,0.00015342,2]
[319292994,1710641456700,-508.86011701,0.00015342,2]
[319292995,1710641456709,-1632.24,0.00015342,2]
[319292996,1710641456718,-500.57742157,0.00015342,2]
[319292997,1710641456727,-1632.24,0.00015342,2]
[319292998,1710641456736,-1632.24,0.00015342,2]
[319292999,1710641456745,-497.59764096,0.00015342,2]
[319293000,1710641456754,-500.0,0.00015342,2]
[319293001,1710641456763,-505.36293689,0.00015342,2]
[319293002,1710641456773,-500.0,0.00015342,2]
[319293003,1710641456782,-500.0,0.00015342,2]
[319293004,1710641456792,-500.0,0.00015342,2]
[319293005,1710641456801,-500.0,0.00015342,2]
[319293006,1710641456810,-500.0,0.00015342,2]
[319293007,1710641456819,-514.32783468,0.00015342,2]
[319293008,1710641456829,-500.0,0.00015342,2]
[319293009,1710641456839,-500.0,0.00015342,2]
[319293010,1710641456848,-500.0,0.00015342,2]
[319293011,1710641456857,-541.63347853,0.00015342,2]
[319293012,1710641456869,-500.0,0.00015342,2]
[319293013,1710641456878,-500.0,0.00015342,2]
[319293014,1710641456888,-500.0,0.00015342,2]
[319293015,1710641456897,-500.0,0.00015342,2]
[319293016,1710641456906,-500.0,0.00015342,2]
[319293017,1710641456915,-587.8347708,0.00015342,2]
[319293018,1710641456925,-500.0,0.00015342,2]
[319293019,1710641456934,-500.0,0.00015342,2]
[319293020,1710641456944,-500.0,0.00015342,2]
[319293021,1710641456953,-500.0,0.00015342,2]
[319293022,1710641456962,-500.0,0.00015342,2]
[319293023,1710641456971,-500.0,0.00015342,2]
[319293024,1710641456980,-500.0,0.00015342,2]
[319293025,1710641456989,-500.0,0.00015342,2]
[319293026,1710641456998,-216.07731441,0.00015342,2]
[319293027,1710641457008,-500.0,0.00015342,2]
[319293028,1710641457017,-500.0,0.00015342,2]
[319293029,1710641457026,-500.0,0.00015342,2]
[319293030,1710641457035,-500.0,0.00015342,2]
[319293031,1710641457044,-500.0,0.00015342,2]
[319293032,1710641457053,-500.0,0.00015342,2]
[319293033,1710641457062,-500.0,0.00015342,2]
[319293034,1710641457072,-500.0,0.00015342,2]
[319293035,1710641457082,-500.0,0.00015342,2]
[319293036,1710641457092,-500.0,0.00015342,2]
[319293037,1710641457101,-500.0,0.00015342,2]
[319293038,1710641457111,-500.0,0.00015342,2]
[319293039,1710641457120,-500.0,0.00015342,2]
[319293040,1710641457129,-500.0,0.00015342,2]
[319293041,1710641457139,-500.0,0.00015342,2]
[319293042,1710641457149,-500.0,0.00015342,2]
[319293043,1710641457158,-500.0,0.00015342,2]
[319293044,1710641457168,-500.0,0.00015342,2]
[319293045,1710641457178,-535.58299515,0.00015342,2]
[319293046,1710641457188,-500.0,0.00015342,2]
[319293047,1710641457197,-500.0,0.00015342,2]
[319293048,1710641457206,-500.0,0.00015342,2]
[319293049,1710641457216,-500.0,0.00015342,2]
[319293050,1710641457225,-500.0,0.00015342,2]
[319293051,1710641457235,-500.0,0.00015342,2]
[319293052,1710641457244,-500.0,0.00015342,2]
[319293053,1710641457253,-500.0,0.00015342,2]
[319293054,1710641457262,-500.0,0.00015342,2]
[319293055,1710641457271,-500.0,0.00015342,2]
[319293056,1710641457281,-500.0,0.00015342,2]
[319293057,1710641457293,-500.0,0.00015342,2]
[319293058,1710641457302,-500.0,0.00015342,2]
[319293059,1710641457312,-500.0,0.00015342,2]
[319293060,1710641457321,-500.0,0.00015342,2]
[319293061,1710641457330,-500.0,0.00015342,2]
[319293062,1710641457339,-500.0,0.00015342,2]
[319293063,1710641457349,-228.7,0.00015342,2]
[319293064,1710641457359,-500.0,0.00015342,2]
[319293065,1710641457370,-500.0,0.00015342,2]
[319293066,1710641457379,-500.0,0.00015342,2]
[319293067,1710641457388,-218.99950677,0.00015342,2]
[319293068,1710641457398,-500.0,0.00015342,2]
[319293069,1710641457407,-500.0,0.00015342,2]
[319293070,1710641457416,-500.0,0.00015342,2]
[319293071,1710641457426,-500.0,0.00015342,2]
[319293072,1710641457435,-500.0,0.00015342,2]
[319293073,1710641457447,-500.0,0.00015342,2]
[319293074,1710641457456,-500.0,0.00015342,2]
[319293075,1710641457466,-500.0,0.00015342,2]
[319293076,1710641457475,-500.0,0.00015342,2]
[319293077,1710641457485,-847.29,0.00015342,2]
[319293078,1710641457494,-500.0,0.00015342,2]
[319293079,1710641457503,-520.75871566,0.00015342,2]
[319293080,1710641457512,-500.0,0.00015342,2]
[319293081,1710641457521,-847.29,0.00015342,2]
[319293082,1710641457530,-238.77,0.00015342,2]
[319293083,1710641457540,-500.0,0.00015342,2]
[319293084,1710641457549,-847.29,0.00015342,2]
[319293085,1710641457559,-500.0,0.00015342,2]
[319293086,1710641457569,-847.29,0.00015342,2]
[319293087,1710641457578,-847.29,0.00015342,2]
[319293088,1710641457587,-500.0,0.00015342,2]
[319293089,1710641457598,-155.0258399,0.00015345,2]
[319293090,1710641457607,-2373.31343531,0.00015345,2]
[319293091,1710641457616,-2373.31343531,0.00015355,2]
[319293092,1710641457626,-500.0,0.00015363,2]
[319293093,1710641457635,-500.0,0.00015363,2]
[319293094,1710641457645,-500.0,0.00015363,2]
[319293095,1710641457655,-510.45363885,0.00015363,2]
[319293096,1710641457665,-178.86,0.00015363,2]
[319293097,1710641457674,-2373.31343531,0.00015364,2]
[319293098,1710641457683,-2373.31343531,0.00015373,2]
[319293099,1710641457695,-500.0,0.00015378,2]
[319293100,1710641457704,-506.33736409,0.00015378,2]
[319293101,1710641457714,-291.75,0.00015378,2]
[319293102,1710641457724,-500.0,0.00015378,2]
[319293103,1710641457733,-2373.31343531,0.00015382,2]
[319293104,1710641457742,-280.99731426,0.00015385,2]
[319293105,1710641457752,-10867.379,0.00015387,2]
[319293106,1710641457761,-2373.31343531,0.00015391,2]
[319293107,1710641457771,-241.90791721,0.00015395,2]
[319293108,1710641457780,-500.0,0.00015398,2]
[319293109,1710641457789,-500.0,0.00015398,2]
[319293110,1710641457799,-694.14,0.00015398,2]
[319293111,1710641457808,-254.75298472,0.00015398,2]
[319293112,1710641457818,-641.1,0.00015398,2]
[319293113,1710641457828,-4077.83,0.00015398,2]
[319293114,1710641457837,-500.0,0.00015398,2]
[319293115,1710641457847,-500.0,0.00015398,2]
[319293116,1710641457856,-500.0,0.00015398,2]
[319293117,1710641457866,-1690.36,0.00015398,2]
[319293118,1710641457875,-500.0,0.00015398,2]
[319293119,1710641457884,-1092.98,0.00015398,2]
[319293120,1710641457895,-933.81,0.00015398,2]
[319293121,1710641457905,-500.0,0.00015398,2]
[319293122,1710641457915,-608.61,0.00015398,2]
[319293123,1710641457924,-606.49,0.00015398,2]
[319293124,1710641457933,-500.0,0.00015398,2]
[319293125,1710641457944,-602.03,0.00015399,2]
[319293126,1710641457954,-500.0,0.00015399,2]
[319293127,1710641457964,-191.38919771,0.00015399,2]
[319293128,1710641457973,-500.0,0.00015399,2]
[319293129,1710641457982,-500.0,0.00015399,2]
[319293130,1710641457991,-500.0,0.00015399,2]
[319293131,1710641458001,-520.35,0.00015399,2]
[319293132,1710641458010,-500.0,0.00015399,2]
[319293133,1710641458019,-1055.2,0.00015399,2]
[319293134,1710641458028,-500.0,0.00015399,2]
[319293135,1710641458037,-500.0,0.00015399,2]
[319293136,1710641458046,-764.47,0.00015399,2]
[319293137,1710641458055,-1029.97,0.00015399,2]
[319293138,1710641458064,-500.0,0.00015399,2]
[319293139,1710641458074,-2669.1,0.00015399,2]
[319293140,1710641458083,-500.0,0.00015399,2]
[319293141,1710641458093,-284.22875571,0.00015399,2]
[319293142,1710641458103,-3179.27,0.00015399,2]
[319293143,1710641458113,-961.58,0.00015399,2]
[319293144,1710641458122,-6993.5,0.00015399,2]
[319293145,1710641458132,-2240.91,0.00015399,2]
[319293146,1710641458142,-1316.87,0.00015399,2]
[319293147,1710641458151,-837.2,0.00015399,2]
[319293148,1710641458160,-500.0,0.00015399,2]
[319293149,1710641458170,-500.0,0.00015399,2]
[319293150,1710641458179,-811.29,0.00015399,2]
[319293151,1710641458190,-500.0,0.00015399,2]
[319293152,1710641458199,-1403.92,0.00015399,2]
[319293153,1710641458208,-500.0,0.00015399,2]
[319293154,1710641458218,-500.0,0.00015399,2]
[319293155,1710641458227,-500.0,0.00015399,2]
[319293156,1710641458237,-500.0,0.00015399,2]
[319293157,1710641458247,-500.0,0.00015399,2]
[319293158,1710641458257,-500.0,0.00015399,2]
[319293159,1710641458268,-500.0,0.00015399,2]
[319293160,1710641458278,-1369.94,0.00015399,2]
[319293161,1710641458288,-500.0,0.00015399,2]
[319293162,1710641458300,-932.6,0.00015399,2]
[319293163,1710641458310,-500.0,0.00015399,2]
[319293164,1710641458320,-500.0,0.00015399,2]
[319293165,1710641458374,-500.0,0.00015399,2]
[319293166,1710641458384,-500.0,0.00015399,2]
[319293167,1710641458394,-500.0,0.00015399,2]
[319293168,1710641458404,-500.0,0.00015399,2]
[319293169,1710641458413,-1227.85,0.00015399,2]
[319293170,1710641458422,-500.0,0.00015399,2]
[319293171,1710641458432,-664.62,0.00015399,2]
[319293172,1710641458442,-512.33868264,0.00015399,2]
[319293173,1710641458451,-1632.24,0.00015399,2]
[319293174,1710641458460,-500.0,0.00015399,2]
[319293175,1710641458469,-126912.02835349,0.000154,5]
[319293176,1710641458479,-2373.31343531,0.000154,2]
[319293177,1710641458488,-178.23011038,0.000154,2]
[319293178,1710641458497,-186.67566059,0.000154,2]
[319293179,1710641458506,-373.27067235,0.000154,2]
[319293180,1710641458515,-996.02358308,0.000154,2]
[319293181,1710641458525,-722.1204,0.00015423,2]
[319293182,1710641458534,-500.0,0.00015423,2]
[319293183,1710641458544,-500.0,0.00015423,2]
[319293184,1710641458553,-500.0,0.00015423,2]
[319293185,1710641458563,-500.0,0.00015423,2]
[319293186,1710641458572,-500.0,0.00015423,2]
[319293187,1710641458581,-535.9969,0.00015423,2]
[319293188,1710641458590,-150.167,0.00015431,2]
[319293189,1710641458599,-153.623933,0.00015431,2]
[319293190,1710641458609,-959.0,0.00015433,2]
[319293191,1710641458618,-1378.0,0.00015433,2]
[319293192,1710641458627,-536.0,0.00015433,2]
[319293193,1710641458636,-1227.0,0.00015433,2]
[319293194,1710641458645,-457.0,0.00015433,2]
[319293195,1710641458655,-1250.0,0.00015433,2]
[319293196,1710641458664,-603.0,0.00015433,2]
[319293197,1710641458673,-1264.0,0.00015433,2]
[319293198,1710641458682,-445.231,0.00015433,2]
[319293199,1710641458692,-416.612,0.00015433,2]
[319293200,1710641458701,-1820.534,0.00015433,2]
[319293201,1710641458710,-1470.157,0.00015433,2]
[319293202,1710641458720,-214.0,0.00015433,2]
[319293203,1710641458729,-414.848,0.00015433,2]
[319293204,1710641458738,-271.0,0.0001544,2]
[319293205,1710641458747,-2249.98001698,0.00015458,2]
[319293206,1710641458756,-578.13038067,0.00015458,2]
[319293207,1710641458766,-3389.68216028,0.00015458,2]
[319293208,1710641458775,-321.7,0.00015476,2]
[319293209,1710641458786,-666.666666,0.00015476,2]
[319293210,1710641458796,-666.666666,0.00015476,2]
[319293211,1710641458806,-666.666666,0.00015476,2]
[319293212,1710641458816,-666.666666,0.00015476,2]
[319293213,1710641458825,-710.666666,0.00015476,2]
[319293214,1710641458834,-500.0,0.00015476,2]
[319293215,1710641458844,-666.666666,0.00015477,2]
[319293216,1710641458853,-666.666666,0.00015477,2]
[319293217,1710641458863,-666.666666,0.00015477,2]
[319293218,1710641458875,-666.666666,0.00015477,2]
[319293219,1710641458884,-666.666666,0.00015477,2]
[319293220,1710641458895,-666.666666,0.00015477,2]
[319293221,1710641458904,-694.14,0.00015477,2]
[319293222,1710641458914,-641.1,0.00015477,2]
[319293223,1710641458924,-4077.83,0.00015477,2]
[319293224,1710641458934,-500.0,0.00015477,2]
[319293225,1710641458944,-500.0,0.00015477,2]
[319293226,1710641458954,-287.23,0.00015477,2]
[319293227,1710641458964,-1690.36,0.00015477,2]
[319293228,1710641458974,-303.28,0.00015477,2]
[319293229,1710641458985,-1092.98,0.00015477,2]
[319293230,1710641458996,-933.81,0.00015477,2]
[319293231,1710641459006,-500.0,0.00015477,2]
[319293232,1710641459016,-608.61,0.00015477,2]
[319293233,1710641459026,-606.49,0.00015477,2]
[319293234,1710641459036,-500.0,0.00015477,2]
[319293235,1710641459046,-2862.80066696,0.00015478,2]
[319293236,1710641459056,-680.89543046,0.00015478,2]
[319293237,1710641459066,-666.666666,0.00015478,2]
[319293238,1710641459076,-666.666666,0.00015478,2]
[319293239,1710641459087,-666.666666,0.00015478,2]
[319293240,1710641459097,-666.666666,0.00015478,2]
[319293241,1710641459106,-666.666666,0.00015478,2]
[319293242,1710641459116,-666.666666,0.00015478,2]
[319293243,1710641459125,-666.666666,0.00015478,2]
[319293244,1710641459134,-666.666666,0.00015478,2]
[319293245,1710641459144,-666.666666,0.00015478,2]
[319293246,1710641459153,-666.666666,0.00015478,2]
[319293247,1710641459162,-500.0,0.00015478,2]
[319293248,1710641459171,-500.0,0.00015478,2]
[319293249,1710641459180,-500.0,0.00015478,2]
[319293250,1710641459191,-500.0,0.00015478,2]
[319293251,1710641459200,-520.35,0.00015478,2]
[319293252,1710641459211,-500.0,0.00015478,2]
[319293253,1710641459222,-1055.2,0.00015478,2]
[319293254,1710641459232,-262.11635718,0.00015478,2]
[319293255,1710641459242,-500.0,0.00015478,2]
[319293256,1710641459251,-764.47,0.00015478,2]
[319293257,1710641459260,-1029.97,0.00015478,2]
[319293258,1710641459269,-500.0,0.00015478,2]
[319293259,1710641459278,-2669.1,0.00015478,2]
[319293260,1710641459288,-500.0,0.00015478,2]
[319293261,1710641459300,-3179.27,0.00015478,2]
[319293262,1710641459309,-961.58,0.00015478,2]
[319293263,1710641459318,-6993.5,0.00015478,2]
[319293264,1710641459328,-2240.91,0.00015478,2]
[319293265,1710641459337,-1316.87,0.00015478,2]
[319293266,1710641459347,-837.2,0.00015478,2]
[319293267,1710641459356,-500.0,0.00015478,2]
[319293268,1710641459366,-500.0,0.00015478,2]
[319293269,1710641459375,-811.29,0.00015478,2]
[319293270,1710641459384,-500.0,0.00015478,2]
[319293271,1710641459394,-1403.92,0.00015478,2]
[319293272,1710641459402,-474.71,0.00015478,2]
[319293273,1710641459412,-500.0,0.00015478,2]
[319293274,1710641459421,-500.0,0.00015478,2]
[319293275,1710641459431,-694.14,0.00015478,2]
[319293276,1710641459441,-500.0,0.00015478,2]
[319293277,1710641459451,-500.0,0.00015478,2]
[319293278,1710641459461,-500.0,0.00015478,2]
[319293279,1710641459471,-641.1,0.00015478,2]
[319293280,1710641459480,-500.0,0.00015478,2]
[319293281,1710641459490,-1369.94,0.00015478,2]
[319293282,1710641459500,-4077.83,0.00015478,2]
[319293283,1710641459510,-500.0,0.00015478,2]
[319293284,1710641459519,-500.0,0.00015478,2]
[319293285,1710641459529,-932.6,0.00015478,2]
[319293286,1710641459539,-442.04484645,0.00015478,2]
[319293287,1710641459549,-500.0,0.00015478,2]
[319293288,1710641459559,-500.0,0.00015478,2]
[319293289,1710641459569,-1690.36,0.00015478,2]
[319293290,1710641459579,-500.0,0.00015478,2]
[319293291,1710641459588,-1092.98,0.00015478,2]
[319293292,1710641459598,-500.0,0.00015478,2]
[319293293,1710641459608,-933.81,0.00015478,2]
[319293294,1710641459618,-500.0,0.00015478,2]
[319293295,1710641459628,-500.0,0.00015478,2]
[319293296,1710641459638,-1227.85,0.00015478,2]
[319293297,1710641459650,-500.0,0.00015478,2]
[319293298,1710641459659,-664.62,0.00015478,2]
[319293299,1710641459668,-500.0,0.00015478,2]
[319293300,1710641459677,-608.61,0.00015478,2]
[319293301,1710641459686,-606.49,0.00015478,2]
[319293302,1710641459696,-1632.24,0.00015478,2]
[319293303,1710641459705,-500.0,0.00015478,2]
[319293304,1710641459714,-500.0,0.00015478,2]
[319293305,1710641459723,-303.08119858,0.00015479,2]
[319293306,1710641459732,-500.0,0.00015479,2]
[319293307,1710641459741,-500.0,0.00015479,2]
[319293308,1710641459751,-500.0,0.00015479,2]
[319293309,1710641459760,-500.0,0.00015479,2]
[319293310,1710641459769,-500.0,0.00015479,2]
[319293311,1710641459779,-500.0,0.00015479,2]
[319293312,1710641459789,-500.0,0.00015479,2]
[319293313,1710641459798,-500.0,0.00015479,2]
[319293314,1710641459808,-500.0,0.00015479,2]
[319293315,1710641459817,-500.0,0.00015479,2]
[319293316,1710641459826,-500.0,0.00015479,2]
[319293317,1710641459835,-500.0,0.00015479,2]
[319293318,1710641459844,-500.0,0.00015479,2]
[319293319,1710641459854,-500.0,0.00015479,2]
[319293320,1710641459862,-500.0,0.00015479,2]
[319293321,1710641459871,-500.0,0.00015479,2]
[319293322,1710641459881,-500.0,0.00015479,2]
[319293323,1710641459890,-379.1,0.00015479,2]
[319293324,1710641459898,-500.0,0.00015479,2]
[319293325,1710641459907,-500.0,0.00015479,2]
[319293326,1710641459916,-500.0,0.00015479,2]
[319293327,1710641459925,-500.0,0.00015479,2]
[319293328,1710641459934,-500.0,0.00015479,2]
[319293329,1710641459944,-520.35,0.00015479,2]
[319293330,1710641459953,-520.35,0.00015479,2]
[319293331,1710641459962,-520.35,0.00015479,2]
[319293332,1710641459971,-520.35,0.00015479,2]
[319293333,1710641459981,-520.35,0.00015479,2]
[319293334,1710641459992,-184.46635158,0.00015479,2]
[319293335,1710641460001,-1055.2,0.00015479,2]
[319293336,1710641460011,-1055.2,0.00015479,2]
[319293337,1710641460020,-1055.2,0.00015479,2]
[319293338,1710641460029,-1055.2,0.00015479,2]
[319293339,1710641460038,-1055.2,0.00015479,2]
[319293340,1710641460047,-500.0,0.00015479,2]
[319293341,1710641460057,-500.0,0.00015479,2]
[319293342,1710641460066,-500.0,0.00015479,2]
[319293343,1710641460075,-341.31,0.00015479,2]
[319293344,1710641460084,-764.47,0.00015479,2]
[319293345,1710641460094,-764.47,0.00015479,2]
[319293346,1710641460103,-764.47,0.00015479,2]
[319293347,1710641460113,-764.47,0.00015479,2]
[319293348,1710641460122,-764.47,0.00015479,2]
[319293349,1710641460131,-1029.97,0.00015479,2]
[319293350,1710641460141,-1029.97,0.00015479,2]
[319293351,1710641460150,-1029.97,0.00015479,2]
[319293352,1710641460159,-1029.97,0.00015479,2]
[319293353,1710641460169,-500.0,0.00015479,2]
[319293354,1710641460178,-500.0,0.00015479,2]
[319293355,1710641460190,-1029.97,0.00015479,2]
[319293356,1710641460199,-500.0,0.00015479,2]
[319293357,1710641460209,-500.0,0.00015479,2]
[319293358,1710641460218,-500.0,0.00015479,2]
[319293359,1710641460227,-2669.1,0.00015479,2]
[319293360,1710641460236,-2669.1,0.00015479,2]
[319293361,1710641460246,-2669.1,0.00015479,2]
[319293362,1710641460256,-2669.1,0.00015479,2]
[319293363,1710641460265,-2669.1,0.00015479,2]
[319293364,1710641460274,-500.0,0.00015479,2]
[319293365,1710641460284,-500.0,0.00015479,2]
[319293366,1710641460298,-500.0,0.00015479,2]
[319293367,1710641460307,-422.22144567,0.00015479,2]
[319293368,1710641460316,-3179.27,0.00015479,2]
[319293369,1710641460326,-3179.27,0.00015479,2]
[319293370,1710641460336,-3179.27,0.00015479,2]
[319293371,1710641460345,-3179.27,0.00015479,2]
[319293372,1710641460355,-3179.27,0.00015479,2]
[319293373,1710641460366,-961.58,0.00015479,2]
[319293374,1710641460376,-961.58,0.00015479,2]
[319293375,1710641460386,-961.58,0.00015479,2]
[319293376,1710641460395,-6993.5,0.00015479,2]
[319293377,1710641460404,-961.58,0.00015479,2]
[319293378,1710641460414,-6993.5,0.00015479,2]
[319293379,1710641460422,-961.58,0.00015479,2]
[319293380,1710641460431,-6993.5,0.00015479,2]
[319293381,1710641460442,-6993.5,0.00015479,2]
[319293382,1710641460451,-6993.5,0.00015479,2]
[319293383,1710641460461,-2240.91,0.00015479,2]
[319293384,1710641460470,-2240.91,0.00015479,2]
[319293385,1710641460479,-2240.91,0.00015479,2]
[319293386,1710641460489,-2240.91,0.00015479,2]
[319293387,1710641460498,-2240.91,0.00015479,2]
[319293388,1710641460508,-1316.87,0.00015479,2]
[319293389,1710641460519,-1316.87,0.00015479,2]
[319293390,1710641460529,-837.2,0.00015479,2]
[319293391,1710641460538,-1316.87,0.00015479,2]
[319293392,1710641460548,-837.2,0.00015479,2]
[319293393,1710641460557,-1316.87,0.00015479,2]
[319293394,1710641460567,-1316.87,0.00015479,2]
[319293395,1710641460577,-500.0,0.00015479,2]
[319293396,1710641460588,-837.2,0.00015479,2]
[319293397,1710641460598,-500.0,0.00015479,2]
[319293398,1710641460608,-837.2,0.00015479,2]
[319293399,1710641460618,-500.0,0.00015479,2]
[319293400,1710641460627,-837.2,0.00015479,2]
[319293401,1710641460637,-500.0,0.00015479,2]
[319293402,1710641460646,-577.6,0.00015479,2]
[319293403,1710641460655,-500.0,0.00015479,2]
[319293404,1710641460664,-500.0,0.00015479,2]
[319293405,1710641460673,-500.0,0.00015479,2]
[319293406,1710641460682,-500.0,0.00015479,2]
[319293407,1710641460693,-500.0,0.00015479,2]
[319293408,1710641460703,-811.29,0.00015479,2]
[319293409,1710641460714,-500.0,0.00015479,2]
[319293410,1710641460725,-811.29,0.00015479,2]
[319293411,1710641460734,-500.0,0.00015479,2]
[319293412,1710641460743,-811.29,0.00015479,2]
[319293413,1710641460752,-500.0,0.00015479,2]
[319293414,1710641460763,-500.0,0.00015479,2]
[319293415,1710641460773,-1403.92,0.00015479,2]
[319293416,1710641460783,-811.29,0.00015479,2]
[319293417,1710641460792,-1403.92,0.00015479,2]
[319293418,1710641460802,-500.0,0.00015479,2]
[319293419,1710641460813,-811.29,0.00015479,2]
[319293420,1710641460823,-1403.92,0.00015479,2]
[319293421,1710641460832,-1403.92,0.00015479,2]
[319293422,1710641460841,-1403.92,0.00015479,2]
[319293423,1710641460851,-500.0,0.00015479,2]
[319293424,1710641460860,-500.0,0.00015479,2]
[319293425,1710641460869,-500.0,0.00015479,2]
[319293426,1710641460878,-500.0,0.00015479,2]
[319293427,1710641460887,-168.39,0.00015479,2]
[319293428,1710641460897,-523.56,0.00015479,2]
[319293429,1710641460906,-694.14,0.00015479,2]
[319293430,1710641460918,-694.14,0.00015479,2]
[319293431,1710641460928,-694.14,0.00015479,2]
[319293432,1710641460938,-694.14,0.00015479,2]
[319293433,1710641460947,-694.14,0.00015479,2]
[319293434,1710641460957,-694.14,0.00015479,2]
[319293435,1710641460966,-694.14,0.00015479,2]
[319293436,1710641460977,-694.14,0.00015479,2]
[319293437,1710641460989,-694.35140658,0.00015479,2]
[319293438,1710641460999,-500.0,0.00015479,2]
[319293439,1710641461009,-500.0,0.00015479,2]
[319293440,1710641461020,-500.0,0.00015479,2]
[319293441,1710641461029,-500.0,0.00015479,2]
[319293442,1710641461040,-151.0,0.00015479,2]
[319293443,1710641461050,-500.0,0.00015479,2]
[319293444,1710641461063,-500.0,0.00015479,2]
[319293445,1710641461073,-500.0,0.00015479,2]
[319293446,1710641461083,-500.0,0.00015479,2]
[319293447,1710641461093,-512.03288849,0.00015479,2]
[319293448,1710641461103,-500.0,0.00015479,2]
[319293449,1710641461114,-500.0,0.00015479,2]
[319293450,1710641461123,-500.0,0.00015479,2]
[319293451,1710641461134,-254.261093,0.00015479,2]
[319293452,1710641461145,-151.0,0.00015479,2]
[319293453,1710641461155,-254.261093,0.00015479,2]
[319293454,1710641461165,-641.1,0.00015479,2]
[319293455,1710641461176,-641.1,0.00015479,2]
[319293456,1710641461185,-500.0,0.00015479,2]
[319293457,1710641461197,-641.1,0.00015479,2]
[319293458,1710641461207,-500.0,0.00015479,2]
[319293459,1710641461216,-151.0,0.00015479,2]
[319293460,1710641461226,-641.1,0.00015479,2]
[319293461,1710641461236,-641.1,0.00015479,2]
[319293462,1710641461246,-500.0,0.00015479,2]
[319293463,1710641461256,-641.1,0.00015479,2]
[319293464,1710641461266,-500.0,0.00015479,2]